Cogmind - Beta 14 @@@ ROGUE MODE // 2025.01.18 @ 23:33:59 Player: jfk Result: Destroyed by S-27 Virus with Autogun Performance ------------- Evolutions (3) 1500 Regions Visited (6) 1200 Robots Destroyed (45) 225 Value Destroyed (1172) 1172 Prototype IDs (8) 160 Alien Tech Used (0) 0 Bonus (1162) 1162 TOTAL SCORE: 5419 Bonus ------- High Alert Combat Kills 480 Follower Combat Kills 182 Entered DSFs 500 Cogmind --------- Core Integrity 0/700 Matter 280/300 Energy 83/100 System Corruption 0% Temperature Cool (0) Movement Flying (40) Location -7/DSF Parts ------- > --- POWER (2) -------- (None) > --- PROPULSION (4) --- Xenon Bombardment Thruster > --- UTILITY (5) ------ (None) > --- WEAPON (2) ------- (None) > --- INVENTORY (5) ---- Xenon Bombardment Thruster Xenon Bombardment Thruster Xenon Bombardment Thruster Peak State ------------ > --- POWER ------------ Ion Engine > --- PROPULSION ------- Xenon Bombardment Thruster Xenon Bombardment Thruster Xenon Bombardment Thruster Xenon Bombardment Thruster > --- UTILITY ---------- Launcher Guidance Computer Launcher Guidance Computer Launcher Guidance Computer Launcher Guidance Computer > --- WEAPON ----------- Heavy EM Shotgun > --- INVENTORY -------- Light Treads Aluminum Leg Beam Cannon Assault Rifle [Rating: 37] Favorites ----------- Power Ion Engine Engine Ion Engine Power Core Light Nuclear Core Propulsion Xenon Bombardment Thruster Treads Light Treads Leg Aluminum Leg Flight Unit Xenon Bombardment Thruster Utility Launcher Guidance Computer Device Tractor Beam Storage Small Storage Unit Processor Launcher Guidance Computer Weapon Small Laser Energy Gun Small Laser Energy Cannon Beam Cannon Ballistic Gun Assault Rifle Launcher Advanced EMP Blaster Slashing Weapon Mining Claw Build | -11 -10 -9 -8 -8 -7 -7 ------- Run | Yrd Mat Mat Mat Sto Fac DSF Slots Evolved 6 | . . 2 2 . 2 . Power 1 | . . . . . 1 . Propulsion 2 | . . 2 . . . . Utility 3 | . . . 2 . 1 . Weapon . | . . . . . . . Parts Attached 65 | 9 2 13 11 25 1 4 Power 10 | 1 . 1 1 7 . . Engine 7 | 1 . 1 1 4 . . Core 3 | . . . . 3 . . Reactor . | . . . . . . . Propulsion 27 | 2 2 10 5 5 1 2 Treads 1 | . . 1 . . . . Leg 5 | 2 2 . . 1 . . Wheel . | . . . . . . . Hover . | . . . . . . . Flight 21 | . . 9 5 4 1 2 Utility 7 | 2 . . 4 1 . . Device 2 | 1 . . . 1 . . Storage 1 | 1 . . . . . . Processor 4 | . . . 4 . . . Hackware . | . . . . . . . Protection . | . . . . . . . Artifact . | . . . . . . . Weapon 21 | 4 . 2 1 12 . 2 Energy Gun 11 | 3 . 1 1 5 . 1 Energy Cannon 1 | . . . . 1 . . Ballistic Gun 2 | 1 . . . 1 . . Ballistic Cannon . | . . . . . . . Launcher 6 | . . 1 . 5 . . Special Weapon . | . . . . . . . Impact Weapon . | . . . . . . . Slashing Weapon 1 | . . . . . . 1 Piercing Weapon . | . . . . . . . Special Melee Weapon . | . . . . . . . Unidentified Prototypes 5 | . . . . 5 . . Corrupted Parts 2 | . . 1 . 1 . . System Corruption 7 | . . 1 . 6 . . Parts Lost 29 | . 1 9 4 10 . 5 Power 3 | . . . 1 2 . . Propulsion 15 | . 1 6 2 5 . 1 Utility 3 | . . 1 . . . 2 Weapon 8 | . . 2 1 3 . 2 Highest Loss Streak 6 | . 1 4 3 6 . 5 To Critical Strikes 1 | . . 1 . . . . Average Slot Usage (%) 73 | . 99 68 52 76 51 38 Engine 5 | . 14 10 2 1 . . Leg 7 | . 27 . . 2 . . Flight 16 | . . 31 19 22 5 6 Device 5 | . 14 2 . 3 7 4 Storage 4 | . 14 6 . . . . Processor 15 | . . . 24 30 23 18 Energy Gun 10 | . 28 12 3 2 7 4 Launcher 3 | . . 4 3 6 7 4 Peak Build Rating 37 | 7 7 10 37 37 25 25 Average Rating 16 | 5 6 6 19 28 23 18 On Entrance 14 | . 7 7 2 36 25 25 Naked Turns 9 | . . . . . . 9 Heaviest Build 14 | 14 14 14 9 14 9 9 Greatest Support 24 | 20 20 16 24 24 12 12 Greatest Overweight (x) 1 | . 1 1 . 1 . 1 Average Overweight (x) . | . . . . . . . Largest Inventory Capacity 8 | 8 8 8 5 5 5 5 Average Capacity 6 | 7 8 6 5 5 5 5 Most Carried 8 | 4 8 8 5 5 2 4 Average Carried 4 | 2 6 6 4 4 2 2 Final Capacity 8 | 8 8 5 5 5 5 5 Final Carried 8 | 4 8 5 4 2 2 3 Class Distribution -------------------- 85% | Mutant 6% | Sprinter 5% | Scavenger-Sprinter Dominant Class ---------------- Mutant | -10/Materials Mutant | -9/Materials Mutant | -8/Materials Mutant | -8/Storage Mutant | -7/Factory Mutant | -7/DSF Resources | -11 -10 -9 -8 -8 -7 -7 ----------- Run | Yrd Mat Mat Mat Sto Fac DSF Matter Collected 1078 | 293 20 72 203 470 . 20 Remotely 159 | 123 20 16 . . . . Salvage Created 1386 | 130 181 250 . 825 . . Parts 81 | 8 11 19 . 43 . . Haulers Intercepted 3 | . . . . 3 . . Recyclers Shooed . | . . . . . . . Parts Field Recycled . | . . . . . . . Retrieved Matter . | . . . . . . . Parts Self-Destructed . | . . . . . . . Prevented . | . . . . . . . Kills | -11 -10 -9 -8 -8 -7 -7 ------- Run | Yrd Mat Mat Mat Sto Fac DSF Combat Hostiles Destroyed 32 | . 5 13 . 14 . . Guns 11 | . 5 5 . 1 . . AOE 20 | . . 8 . 12 . . Classes Destroyed 10 | 2 2 . . 6 . . Worker 4 | . . . . 4 . . Tunneler 3 | 3 . . . . . . Hauler 3 | . . . . 3 . . Recycler 2 | 1 1 . . . . . Operator 1 | . . . . 1 . . Swarmer 9 | . 3 5 . 1 . . Grunt 16 | . 2 8 . 6 . . Brawler 2 | . . . . 2 . . Protector 1 | . . . . 1 . . Sentry 4 | . . . . 4 . . Best Kill Streak 7 | 3 2 7 . 5 . . Combat Bots Only 7 | . 2 7 . 5 . . Max Kills in Single Turn 3 | 1 1 2 . 3 . . Gunslinging . | . . . . . . . Exploded 3 | . . 2 . 3 . . Melee . | . . . . . . . Uniques/NPCs Destroyed . | . . . . . . . Combat | -11 -10 -9 -8 -8 -7 -7 -------- Run | Yrd Mat Mat Mat Sto Fac DSF Hostile Shots Fired 383 | . 65 74 60 102 . 82 Missed 168 | . 21 35 34 45 . 33 Damage Taken 3073 | . 405 448 350 979 . 891 Core 1409 | . 110 98 185 309 . 707 Absorbed by Shields 59 | . . . . . . 59 Regen/Repaired (Parts) 29 | . . . . . 29 . Core Remaining (%) 60 | 100 56 75 . 10 . . Volleys Fired 95 | 10 19 19 2 45 . . Largest 2 | 2 2 2 1 2 . . Hottest 110 | 90 90 80 30 110 . . Shots Fired 141 | 20 38 28 2 53 . . Gun 100 | 20 38 20 . 22 . . Cannon 3 | . . . . 3 . . Launcher 38 | . . 8 2 28 . . Special . | . . . . . . . Kinetic 11 | 1 . . . 10 . . Thermal 74 | 19 38 10 . 7 . . Explosive 20 | . . 8 2 10 . . Electromagnetic 36 | . . 10 . 26 . . Robot Hit Streak 22 | 4 5 4 6 22 . . Robot Miss Streak 4 | 2 3 4 . 3 . . Penetration Max . | . . . . . . . Secondary Targets 1 | . 1 . . . . . Max Gunslinging Chain 1 | . 1 . . . . . Shots Hit Robots 73 | 10 22 15 2 24 . . Core Hits 69 | 5 9 16 2 37 . . Critical Kills . | . . . . . . . Critical Parts Destroyed . | . . . . . . . Critical Strikes 2 | 1 1 . . . . . Burn 2 | 1 1 . . . . . Melee Attacks . | . . . . . . . Impact . | . . . . . . . Slashing . | . . . . . . . Piercing . | . . . . . . . Sneak Attacks . | . . . . . . . Combat Hostiles . | . . . . . . . Follow-up Attacks . | . . . . . . . Damage Inflicted 3047 | 128 283 645 150 1841 . . Guns 759 | 119 280 133 . 227 . . Cannons 36 | . . . . 36 . . Explosions 2240 | . . 512 150 1578 . . Melee . | . . . . . . . Ramming 12 | 9 3 . . . . . Kinetic 123 | 13 . . . 110 . . Thermal 653 | 106 280 66 . 201 . . Explosive 1188 | . . 512 150 526 . . Electromagnetic 1071 | . . 67 . 1004 . . Impact . | . . . . . . . Slashing . | . . . . . . . Piercing . | . . . . . . . Highest Corruption 6 | . . 1 . 6 . . Average Corruption 1 | . . 1 . 6 . . Corruption Purged . | . . . . . . . Corruption Blocked . | . . . . . . . Overload Shots . | . . . . . . . Overflow Damage 48 | . . 18 . 30 . . Projectiles . | . . . . . . . Explosions 48 | . . 18 . 30 . . Melee . | . . . . . . . Knockbacks . | . . . . . . . Impact . | . . . . . . . Kinetic . | . . . . . . . Secondary . | . . . . . . . Self-Inflicted Damage 161 | . . 70 . 91 . . Shots 5 | . . 1 . 4 . . Rammed . | . . . . . . . Targets Rammed 6 | 3 3 . . . . . Kicked 6 | 3 3 . . . . . Crushed . | . . . . . . . Highest Temperature 340 | 132 340 63 . 72 . . Average Temperature 70 | 58 131 25 . 17 . . Received Heat Transfer 630 | . 72 90 117 351 . . Effects 1 | . 1 . . . . . Energy Bleed 1 | . 1 . . . . . Siege Activations . | . . . . . . . Robots Corrupted 1 | . . . . 1 . . Combat Hostiles 1 | . . . . 1 . . Parts Fried 5 | . . . . 5 . . Impact Corruptions . | . . . . . . . Robots Melted . | . . . . . . . Combat Hostiles . | . . . . . . . Parts Melted 6 | 2 3 1 . . . . Heat Transferred 1651 | 359 818 150 . 324 . . Parts Sabotaged . | . . . . . . . Parts Stolen . | . . . . . . . Parts Stripped . | . . . . . . . Power Chain Reactions 6 | . . . . 6 . . Alert | -11 -10 -9 -8 -8 -7 -7 ------- Run | Yrd Mat Mat Mat Sto Fac DSF Peak Influence 1227 | 20 288 1192 957 1227 574 416 Initial 548 | . 13 121 503 404 548 401 Average 529 | 6 146 646 714 804 566 396 Maximum Alert Level 4 | . 1 4 3 4 2 2 Low Security (%) 24 | 100 70 13 . . . . Level 1 11 | . 29 14 . . . 37 Level 2 29 | . . 26 52 33 100 62 Level 3 28 | . . 38 47 52 . . Level 4 5 | . . 8 . 13 . . Level 5 . | . . . . . . . High Security . | . . . . . . . Max Security . | . . . . . . . Squads Dispatched 14 | . 1 4 2 6 . 1 Investigation 2 | . . 2 . . . . Extermination . | . . . . . . . Reinforcement 7 | . 1 2 2 1 . 1 Assault 2 | . . . . 2 . . Garrison 3 | . . . . 3 . . Intercept . | . . . . . . . Searches Triggered . | . . . . . . . Construction Impeded . | . . . . . . . Haulers Reinforced . | . . . . . . . Active Scanning Responses . | . . . . . . . Cargo Convoy Interrupts . | . . . . . . . Stealth | -11 -10 -9 -8 -8 -7 -7 --------- Run | Yrd Mat Mat Mat Sto Fac DSF Distress Signals 9 | . . 2 3 4 . . Communications Jammed . | . . . . . . . Distress Signals . | . . . . . . . Times Spotted 158 | . 17 49 31 52 . 9 Peak Tracking Total 16 | . 6 13 15 16 . 8 Tactical Retreats 31 | . 5 8 7 9 . 2 Traps | -11 -10 -9 -8 -8 -7 -7 ------- Run | Yrd Mat Mat Mat Sto Fac DSF Traps Triggered 5 | . . 1 . 2 . 2 Indirectly . | . . . . . . . Trap Hack Attempts . | . . . . . . . Triggered . | . . . . . . . Disarmed . | . . . . . . . Reprogrammed . | . . . . . . . Reused . | . . . . . . . Traps Extracted . | . . . . . . . Installed . | . . . . . . . Triggered . | . . . . . . . Machines | -11 -10 -9 -8 -8 -7 -7 ---------- Run | Yrd Mat Mat Mat Sto Fac DSF Machines Disabled 10 | . . 2 . 8 . . Max in Single Turn 3 | . . 2 . 3 . . Machines Repaired . | . . . . . . . Machines Dismantled . | . . . . . . . Machines Sabotaged . | . . . . . . . Overloaded Fab Kills . | . . . . . . . Hacking | -11 -10 -9 -8 -8 -7 -7 --------- Run | Yrd Mat Mat Mat Sto Fac DSF Machines Accessed 9 | . . 2 . 3 4 . Terminals 7 | . . 2 . 3 2 . Fabricators . | . . . . . . . Repair Stations 1 | . . . . . 1 . Recycling Units . | . . . . . . . Scanalyzers . | . . . . . . . Garrison Access 1 | . . . . . 1 . Total Hacks 19 | . . 5 . 7 7 . Successful 10 | . . 3 . 4 3 . Failed 9 | . . 2 . 3 4 . Catastrophic 4 | . . 1 . . 3 . Database Lockouts . | . . . . . . . Manual 7 | . . 2 . 2 3 . Terminals 16 | . . 5 . 7 4 . Fabricators . | . . . . . . . Repair Stations 2 | . . . . . 2 . Recycling Units . | . . . . . . . Scanalyzers . | . . . . . . . Garrison Access 1 | . . . . . 1 . Terminal Hacks 7 | . . 3 . 3 1 . Prototype ID Bank 1 | . . 1 . . . . Open Door 1 | . . . . 1 . . Open DSF 1 | . . . . . 1 . Branch Access Points 1 | . . 1 . . . . Emergency Access Points 1 | . . 1 . . . . Hauler Manifests 1 | . . . . 1 . . Zone Layout 1 | . . . . 1 . . Fabricator Hacks . | . . . . . . . Repair Station Hacks 2 | . . . . . 2 . Scan Component 1 | . . . . . 1 . Repair 1 | . . . . . 1 . Recycling Unit Hacks . | . . . . . . . Scanalyzer . | . . . . . . . Garrison Access Hacks . | . . . . . . . Unauthorized Hacks 1 | . . . . 1 . . Terminals 1 | . . . . 1 . . Track 1 | . . . . 1 . . Fabricators . | . . . . . . . Repair Stations . | . . . . . . . Recycling Units . | . . . . . . . Scanalyzers . | . . . . . . . Garrison Access . | . . . . . . . Data Cores Recovered 1 | . . . . 1 . . Used . | . . . . . . . Hacking Detections 6 | . . 2 . 1 3 . Full Trace Events 1 | . . 1 . . . . Feedback Events . | . . . . . . . Feedback Blocked . | . . . . . . . Robot Schematics Acquired . | . . . . . . . Robots Built . | . . . . . . . Authchips . | . . . . . . . Time . | . . . . . . . Total Robot Build Rating . | . . . . . . . Part Schematics Acquired . | . . . . . . . Parts Built . | . . . . . . . Authchips . | . . . . . . . Time . | . . . . . . . Total Part Build Rating . | . . . . . . . Parts Repaired 1 | . . . . . 1 . Time 22 | . . . . . 22 . Parts Recycled . | . . . . . . . Recycled Matter . | . . . . . . . Retrieved Matter . | . . . . . . . Retrieved Components . | . . . . . . . Parts Scanalyzed . | . . . . . . . Part Schematics Acquired . | . . . . . . . Parts Damaged . | . . . . . . . Bothacking | -11 -10 -9 -8 -8 -7 -7 ------------ Run | Yrd Mat Mat Mat Sto Fac DSF Used RIF Installer . | . . . . . . . Robots Hacked . | . . . . . . . Non-combat . | . . . . . . . Combat . | . . . . . . . Robot Hacks Applied . | . . . . . . . Relay Couplers Released . | . . . . . . . Fabnet Peak Effective % . | . . . . . . . Robots Rewired . | . . . . . . . Allies Hacked . | . . . . . . . Hacks Repelled . | . . . . . . . Allies | -11 -10 -9 -8 -8 -7 -7 -------- Run | Yrd Mat Mat Mat Sto Fac DSF Total Allies 12 | . . . . 12 . . Largest Group 10 | . . . . 10 . . Highest-Rated Group 173 | . . . . 173 . . Highest-Rated Ally 31 | . . . . 31 . . Total Orders 2 | . . . . 2 . . STAY 1 | . . . . 1 . . GUARD 1 | . . . . 1 . . Ally Attacks 90 | . . . . 90 . . Total Damage 1163 | . . . . 1163 . . Kills 13 | . . . . 13 . . Allies Corrupted . | . . . . . . . Allies Melted . | . . . . . . . Intel | -11 -10 -9 -8 -8 -7 -7 ------- Run | Yrd Mat Mat Mat Sto Fac DSF Robot Analysis Total . | . . . . . . . Derelict Logs Recovered . | . . . . . . . Drone Launches . | . . . . . . . Drone Recoveries . | . . . . . . . Exploration | -11 -10 -9 -8 -8 -7 -7 ------------- Run | Yrd Mat Mat Mat Sto Fac DSF Turns Passed 1603 | 107 361 268 203 495 66 103 Spaces Moved 2311 | 48 231 539 489 772 106 126 Core 23 | 2 . . . . . 21 Treads . | . . . . . . . Legs 282 | 46 231 . . 5 . . Wheels . | . . . . . . . Hover . | . . . . . . . Flight 2006 | . . 539 489 767 106 105 Fastest Speed 29 | 50 120 29 29 31 40 35 Average Speed 48 | 117 121 34 37 40 40 43 Slowest Speed 190 | 120 190 114 40 190 40 100 Overloaded Moves . | . . . . . . . Propulsion Burnouts . | . . . . . . . Robots Hopped 36 | . . 10 13 13 . . Cave-ins Triggered . | . . . . . . . Exploration Rate (%) 49 | 5 60 55 48 86 4 89 Regions Visited 6 Branch Regions 1 Pre-discovered Areas . | . . . . . . . Known Exits Taken 1 | . . . . . 1 . Unknown Exits Taken 5 | 1 1 1 1 1 . . Scrap Searched . | . . . . . . . Spaces Dug 44 | . . . . 44 . . Terrain Destroyed 201 | . . 72 20 109 . . Melee . | . . . . . . . Projectile . | . . . . . . . AOE 201 | . . 72 20 109 . . Terrain Rammed . | . . . . . . . Walls Destroyed . | . . . . . . . Machines Disabled . | . . . . . . . Actions | -11 -10 -9 -8 -8 -7 -7 --------- Run | Yrd Mat Mat Mat Sto Fac DSF Total 2612 | 73 273 583 489 892 128 174 Wait 97 | . 12 13 1 30 22 19 Move 2237 | 47 230 519 462 748 105 126 Hop 32 | . . 9 13 10 . . Pick Up 30 | 4 5 3 . 13 . 5 Fast Attach 29 | 7 1 1 10 9 1 . Attach 27 | . . 9 1 13 . 4 Detach 6 | . . 3 . 3 . . Swap 9 | 2 1 3 . 3 . . Drop 20 | . 2 4 . 14 . . Fire 95 | 10 19 19 2 45 . . Melee . | . . . . . . . Ram . | . . . . . . . Kick 6 | 3 3 . . . . . Crush . | . . . . . . . Escape Stasis 20 | . . . . . . 20 Rewire 4 | . . . . 4 . . Trap . | . . . . . . . Miscellaneous . | . . . . . . . Route ------- -11/Scrapyard -10/Materials (discovered 2 exits: *Mat / [*Min]) -9/Materials (discovered 2 exits: [*Mat] / *Min) -8/Materials (discovered 4 exits: *Fac x2 / *Sto x2) -8/Storage -7/Factory -7/DSF (discovered 1 exit: [*Fac]) History --------- Turn | Location | Event 29 | -11/Scrapyard | Discovered new exit (range 16) 108 | -11/Scrapyard | Entered Materials 318 | -10/Materials | Build established: Mutant 324 | -10/Materials | Discovered new exit (range 6) 449 | -10/Materials | Discovered new exit (range 16) 469 | -10/Materials | Entered another Materials area 469 | -9/Materials | Evolved 2 slots: Propulsion x2 526 | -9/Materials | Discovered new exit (range 9) 552 | -9/Materials | Lost 3 parts (1n1u1w) 563 | -9/Materials | Discovered new exit (range 11) 646 | -9/Materials | Lost 4 parts (3n1w) 683 | -9/Materials | Identified exit to Mines 688 | -9/Materials | Destroyed 7 combat bots 737 | -9/Materials | Entered another Materials area 737 | -8/Materials | Evolved 2 slots: Utility x2 839 | -8/Materials | Discovered new exit (range 10) 848 | -8/Materials | Discovered new exit (range 15) 858 | -8/Materials | Discovered new exit (range 11) 899 | -8/Materials | Lost 3 parts (2n1w) 919 | -8/Materials | Discovered new exit (range 5) 940 | -8/Materials | Entered Storage 1050 | -8/Storage | Assisted by bots powering up and referring to "LRC-V3" 1067 | -8/Storage | Garrison activated, responded to threat 1213 | -8/Storage | Core integrity fell below 50% 1246 | -8/Storage | Lost 3 parts (1n2w) 1336 | -8/Storage | Met a pair of Derelict thieves 1405 | -8/Storage | Discovered new exit (range 5) 1425 | -8/Storage | Core integrity fell below 20% 1435 | -8/Storage | Entered Factory 1435 | -7/Factory | Evolved 2 slots: Power x1, Utility x1 1461 | -7/Factory | Lost 6 parts (2p3n1w) 1476 | -7/Factory | Repaired Xenon Bombardment Thruster 1501 | -7/Factory | Identified exit to DSF 1501 | -7/Factory | Entered DSF 1524 | -7/DSF | Additional patrols routed to DSF 1579 | -7/DSF | Core integrity fell below 50% 1580 | -7/DSF | Discovered new exit (range 16) 1597 | -7/DSF | Core integrity fell below 20% 1604 | -7/DSF | Destroyed by S-27 Virus with Autogun Last Messages --------------- 01568_ Weight Redist. System destroyed. 01570_ Launcher Guidance Computer destroyed. 01570_ Critical hit (Blast). 01570_ Knocked back. 01576_ Penetrated by Slug. 01576_ Knocked back. 01580_ EXIT=FOUND 01580_ Xenon Bombardment Thruster destroyed. 01580_ Knocked back. 01586_ Launcher Guidance Computer severed. 01586_ Acquired Cesium-ion Thruster. 01588_ Adv. Beam Rifle severed. 01589_ Mining Claw severed. 01590_ Launcher Guidance Computer severed. 01591_ Acquired Xenon Bombardment Thruster. 01596_ C-30 ARC bursts open, deploying its payload. 01596_ S-27 Virus unfolds itself. 01597_ Acquired 20 matter. 01602_ Acquired Xenon Bombardment Thruster. 01603_ Cesium-ion Thruster severed. Map ----- +----------------------------------------------------+ | | | | | | | | | | | | | | | | | | | | | | | | | | | | | ??????????????????????????????????????????? | | ??????????????????????????????????????????? | | ??????????????????????????????????????????? | | ?????????##???????????????????????????????? | | ?????????""#??????????????????????????????? | | ?????????#"#??????????????????????????????? | | ??????####"##?????????#######?????????????? | | ??????#"""""######### [[[ #?????????????? | | ??????#"""""##==# # [[[ #?????????????? | | ???#"##""